bitfinex-derivatives/quotes_ETHF0:USTF0_20240904
["timestamp","ask_amount","ask_price","bid_price","bid_amount"]
[1725420643759,3.33017,2380.4,2380.2,0.00630067]
[1725420644145,0.42017,2380.3,2380.2,0.00630067]
[1725420644747,4.62177,2380.3,2380.2,0.00630067]
[1725420646559,0.42017,2380.3,2380.2,0.00630067]
[1725420646755,2.91,2380.4,2380.2,0.00630067]
[1725420646962,3.2078,2380.5,2380.2,0.00630067]
[1725420647166,0.42013,2380.6,2380.2,0.00630067]
[1725420647462,0.62873318,2380.7,2380.2,0.00630067]
[1725420647859,0.42013,2380.6,2380.2,0.00630067]
[1725420650064,0.42014,2380.5,2380.2,0.00630067]
[1725420651164,0.8669,2380.6,2380.2,0.00630067]
[1725420651365,0.42017,2380.3,2380.2,0.00630067]
[1725420652467,0.42017,2380.4,2380.2,0.00630067]
[1725420653364,0.93180067,2380.7,2380.2,0.00630067]
[1725420653552,1.35191067,2380.7,2380.2,0.42649067]
[1725420653757,0.93180067,2380.7,2380.3,2.6491]
[1725420653961,0.42012,2380.6,2380.3,2.6491]
[1725420654667,1.35191067,2380.7,2380.3,2.6491]
[1725420654868,0.00630067,2380.7,2380.3,2.6491]
[1725420655061,0.00630067,2380.7,2380.3,3.06926]
[1725420655869,0.00630067,2380.7,2380.3,3.06927]
[1725420656067,0.00630067,2380.7,2380.3,9.7599]
[1725420656265,0.00630067,2380.7,2380.6,0.42012]
[1725420656465,4.215,2381.4,2380.5,6.1178]
[1725420656670,0.20903565,2381.6,2380.9,3.2078]
[1725420656872,14.7206,2381.7,2381.2,0.42001]
[1725420657165,3.7836,2381.7,2381.2,0.42001]
[1725420657371,0.41993,2381.7,2381.2,0.42001]
[1725420657559,0.00630067,2381.7,2381.2,0.42001]
[1725420657754,0.00630067,2381.7,2381.3,0.41999]
[1725420659364,0.00630067,2381.7,2381.4,0.41998]
[1725420659571,0.00630067,2381.7,2381.3,0.41999]
[1725420660267,0.00630067,2381.7,2381.2,3.2078]
[1725420660469,0.00630067,2381.7,2381.3,0.42]
[1725420663679,0.00630067,2381.7,2381.2,3.2078]
[1725420663880,0.42623067,2381.7,2381.2,3.6278]
[1725420664176,0.00630067,2381.7,2381.2,3.6278]
[1725420664379,0.41996,2381.6,2381.2,3.2078]
[1725420665575,0.00630067,2381.7,2381.0,6.08874]
[1725420665576,0.41997,2381.5,2381.0,5.6687]
[1725420665875,1.33857,2381.5,2381.0,5.99075]
[1725420666076,0.00630067,2381.7,2381.2,3.2078]
[1725420666277,0.00630067,2381.7,2381.6,3.32994]
[1725420666777,0.00630067,2381.7,2381.6,16.28094]
[1725420667265,0.00630067,2381.7,2381.6,9.861]
[1725420669169,0.00630067,2381.7,2381.6,2.7526]
[1725420669771,0.00630067,2381.7,2381.6,6.951]
[1725420670480,7.74461,2382.4,2382.0,0.41987]
[1725420670682,3.2078,2382.4,2382.1,1.8033]
[1725420670868,3.2078,2382.4,2382.1,2.6766]
[1725420671177,3.2078,2382.4,2382.1,5.5866]
[1725420671380,3.2078,2382.4,2382.1,6.00645]
[1725420671580,0.41979,2382.5,2382.1,6.00645]
[1725420672077,0.41978,2382.6,2382.1,6.00645]
[1725420673184,6.33076,2382.7,2382.3,0.41982]
[1725420673384,6.33076,2382.7,2382.2,0.41982]
[1725420673883,0.41977,2382.6,2382.1,6.00644]
[1725420674084,0.41977,2382.6,2382.2,0.41984]
[1725420674275,5.911,2382.7,2382.1,2.6766]
[1725420674580,0.41978,2382.6,2382.1,3.09645]
[1725420676290,0.41981,2382.4,2382.1,2.6766]
[1725420676584,0.41979,2382.5,2382.1,1.8033]
[1725420676886,6.1178,2382.6,2382.1,1.8033]
[1725420677087,0.41979,2382.5,2382.1,1.8033]
[1725420677491,3.2078,2382.6,2382.1,1.8033]
[1725420677787,0.41981,2382.4,2382.1,1.8033]
[1725420679678,6.1178,2382.6,2381.8,4.1264]
[1725420679880,0.41988,2382.0,2381.8,3.2078]
[1725420680075,3.2078,2382.3,2381.8,3.2078]
[1725420680076,0.41986,2382.1,2381.8,3.2078]
[1725420680484,0.41987,2382.0,2381.8,3.2078]
[1725420680689,0.41989,2381.9,2381.8,3.2078]
[1725420680885,0.41989,2382.0,2381.8,3.2078]
[1725420681191,1.8032,2382.2,2381.8,3.2078]
[1725420681192,0.41989,2381.9,2381.8,3.2078]
[1725420681697,0.41988,2382.0,2381.8,3.2078]
[1725420681903,1.8032,2382.2,2381.8,3.2078]
[1725420681904,0.41989,2381.9,2381.8,3.2078]
[1725420682100,2.91,2382.1,2381.4,0.97000067]
[1725420682296,0.41987,2382.1,2381.5,4.54225]
[1725420682498,0.41987,2382.1,2381.5,7.0323]
[1725420682694,0.41987,2382.1,2381.5,7.45225]
[1725420682892,2.22305,2382.2,2381.6,0.41994]
[1725420683905,0.41986,2382.1,2381.6,0.41994]
[1725420684206,2.22305,2382.2,2381.6,0.41994]
[1725420684403,2.22305,2382.2,2381.5,7.0323]
[1725420684796,2.22305,2382.2,2381.6,0.41994]
[1725420684999,0.41986,2382.1,2381.5,7.45225]
[1725420685407,0.41988,2382.0,2381.5,7.45225]
[1725420685608,0.41986,2382.1,2381.6,0.41994]
[1725420686704,0.41987,2382.0,2381.6,0.41994]
[1725420687897,1.8032,2382.2,2381.5,7.0323]
[1725420688109,2.22304,2382.2,2381.8,0.4199]
[1725420688406,3.2078,2382.6,2381.9,2.752]
[1725420688611,0.41983,2382.3,2381.9,3.17188]
[1725420689310,0.41985,2382.2,2381.9,1.8378]
[1725420691411,0.41986,2382.1,2381.9,1.8378]
[1725420692109,0.41989,2381.9,2381.8,3.2078]
[1725420693408,2.29088,2382.0,2381.8,3.2078]
[1725420696712,0.20836576,2382.3,2381.8,3.2078]
[1725420696910,0.41988,2382.0,2381.8,3.2078]
[1725420698508,0.41989,2381.9,2381.8,3.2078]
[1725420699712,5.24817,2381.9,2381.4,0.00630067]
[1725420699914,0.41995,2381.6,2381.4,0.00630067]
[1725420701017,0.41996,2381.5,2381.4,0.00630067]
[1725420701913,1.46987,2381.5,2381.4,0.00630067]
[1725420702208,5.66907,2381.5,2381.4,0.00630067]
[1725420704014,0.42005,2381.0,2380.9,3.3058]
[1725420704209,0.42007,2380.9,2380.8,0.9124]
[1725420704606,0.42007,2380.9,2380.5,7.92]
[1725420704607,0.42008,2380.9,2380.5,7.92]
[1725420704818,0.42008,2380.9,2380.6,0.8947]
[1725420704819,0.42007,2380.9,2380.6,0.8947]
[1725420705123,0.42637067,2380.9,2380.6,0.8947]
[1725420705818,0.4201,2380.7,2380.6,0.8947]
[1725420706413,0.909,2380.8,2380.5,1.80850067]
[1725420706414,0.42012,2380.6,2380.5,1.80850067]
[1725420706611,1.34971,2380.7,2380.5,1.80850067]
[1725420707720,1.34971,2380.7,2380.5,0.00630067]
[1725420709217,0.00630067,2380.9,2380.5,0.00630067]
[1725420709408,0.00630067,2380.9,2380.5,3.63423067]
[1725420710225,0.00630067,2380.9,2380.7,0.4201]
[1725420710427,0.00630067,2380.9,2380.8,0.9101]
[1725420713323,0.00630067,2380.9,2380.5,0.42643067]
[1725420713525,0.00630067,2380.9,2380.5,1.32663067]
[1725420713922,0.00630067,2380.9,2380.6,0.42012]
[1725420714118,0.00630067,2380.9,2380.5,4.53443067]
[1725420715125,0.00630067,2380.9,2380.6,0.42011]
[1725420715421,0.00630067,2380.9,2380.8,3.62788]
[1725420715724,0.00630067,2380.9,2380.8,7.82788]
[1725420715927,0.00630067,2380.9,2380.8,8.68948]
[1725420716820,0.41999,2381.4,2381.1,0.42003]
[1725420717025,0.41999,2381.4,2381.2,1.767]
[1725420717226,4.117,2381.7,2381.2,4.677]
[1725420717423,0.41996,2381.6,2381.2,5.09701]
[1725420717623,0.41996,2381.6,2381.3,0.41999]
[1725420718019,0.41996,2381.6,2381.3,1.28159]
[1725420718229,0.41995,2381.6,2381.3,0.8616]
[1725420718726,7.25389809,2381.9,2381.3,0.8616]
[1725420719125,0.41997,2381.5,2381.3,0.8616]
[1725420719525,0.41996,2381.6,2381.3,0.8616]
[1725420720317,7.25389809,2381.9,2381.3,0.8616]
[1725420720725,0.41994,2381.6,2381.3,0.8616]
[1725420720925,7.25389809,2381.9,2381.2,1.767]
[1725420721126,0.41999,2381.4,2381.2,1.767]
[1725420721329,0.41995,2381.6,2381.2,1.767]
[1725420721527,0.41994,2381.7,2381.2,2.18701]
[1725420721724,0.41994,2381.6,2381.2,1.767]
[1725420724736,0.41995,2381.6,2381.2,1.767]
[1725420725833,0.41996,2381.5,2381.2,1.767]
[1725420726031,0.8791,2381.4,2381.2,1.767]
[1725420727530,0.42,2381.3,2381.2,1.767]
[1725420727830,2.21079,2381.4,2381.2,1.767]
[1725420728029,1.7908,2381.4,2381.2,1.767]
[1725420728333,0.41997,2381.5,2381.2,1.767]
[1725420728639,2.91,2381.7,2381.2,1.767]
[1725420728640,0.41998,2381.4,2381.2,1.767]
[1725420729337,0.42003,2381.2,2380.9,0.9227]
[1725420729534,0.42003,2381.2,2380.9,2.6667]
[1725420729735,0.42001,2381.3,2380.9,2.6667]
[1725420730445,1.33169,2381.4,2380.9,3.08676]
[1725420730634,0.42,2381.3,2380.9,3.08676]
[1725420730841,0.9117,2381.4,2380.9,3.08676]
[1725420732137,0.42,2381.3,2380.9,3.08676]
[1725420733239,1.33169,2381.4,2381.0,0.42005]
[1725420735137,0.42,2381.3,2380.9,3.08676]
[1725420736136,0.42,2381.3,2381.0,0.42005]
[1725420736945,0.9117,2381.4,2380.9,2.6667]
[1725420737144,0.41997,2381.5,2381.2,0.42001]
[1725420737444,0.41997,2381.5,2381.3,0.937]
[1725420738840,8.254,2381.6,2381.3,0.937]
[1725420739145,0.41997,2381.5,2381.3,0.937]
[1725420740643,8.67395,2381.6,2381.3,0.937]
[1725420740946,8.254,2381.6,2381.3,0.937]
[1725420741148,0.41996,2381.5,2381.3,0.937]
[1725420741445,4.55695,2381.6,2381.3,0.937]
[1725420741840,0.41996,2381.5,2381.3,0.937]
[1725420742041,4.55695,2381.6,2381.3,0.937]
[1725420742948,0.41996,2381.5,2381.3,0.937]
[1725420743148,0.41998,2381.4,2381.1,3.2078]
[1725420743448,0.9183,2381.3,2381.1,3.2078]
[1725420743837,0.919,2381.2,2381.1,3.2078]
[1725420746045,0.919,2381.2,2381.0,1.36894]
[1725420746545,0.919,2381.2,2380.7,6.1178]
[1725420746741,1.33902,2381.2,2380.8,1.32868]
[1725420748639,1.33902,2381.2,2380.8,0.9086]
[1725420748640,0.919,2381.2,2380.8,0.9086]
[1725420748846,0.42006,2381.0,2380.8,0.9086]
[1725420749954,1.36827,2380.9,2380.7,4.0797]
[1725420750349,1.34148,2380.8,2380.7,4.0797]
[1725420750857,1.34148,2380.8,2380.7,3.2078]
[1725420751953,2.20438,2380.8,2380.7,3.2078]
[1725420752654,2.20438,2380.8,2380.5,0.00630067]
[1725420752655,0.42012,2380.6,2380.5,0.00630067]
[1725420752847,0.42011,2380.7,2380.5,0.00630067]
[1725420754156,0.42012,2380.6,2380.5,0.00630067]
[1725420755544,0.62540639,2380.7,2380.5,0.00630067]
[1725420755744,0.42011,2380.7,2380.5,0.00630067]
[1725420756256,0.63514439,2380.6,2380.5,0.00630067]
[1725420756447,0.42012,2380.6,2380.5,0.00630067]
[1725420756649,3.33012,2380.6,2380.5,0.00630067]
[1725420756952,3.53915631,2380.6,2380.5,0.00630067]
[1725420757956,7.73995631,2380.6,2380.5,0.00630067]
[1725420758153,3.53915631,2380.6,2380.5,0.00630067]
[1725420758549,6.74695631,2380.6,2380.5,0.00630067]
[1725420759245,10.94775631,2380.6,2380.5,0.00630067]
[1725420759450,10.94775631,2380.6,2380.4,1.62425122]
[1725420759451,0.42014,2380.5,2380.4,1.62425122]
[1725420759654,9.46479,2380.5,2380.4,1.62425122]
[1725420759854,15.46479,2380.5,2380.4,1.62425122]
[1725420760250,0.42021,2380.1,2380.0,3.2078]
[1725420760661,0.00630067,2380.3,2380.0,3.2078]
[1725420761059,0.4202,2380.2,2380.0,3.2078]
[1725420761548,0.42021,2380.1,2380.0,3.2078]
[1725420764061,0.42021,2380.1,2379.9,0.9265]
[1725420764262,0.8838,2380.0,2379.9,0.9265]
[1725420764559,1.7906,2380.0,2379.9,0.9265]
[1725420765154,2.21083,2380.0,2379.8,1.77030067]
[1725420765357,2.21083,2380.0,2379.8,0.00630067]
[1725420765358,0.42024,2379.9,2379.8,0.00630067]
[1725420765760,1.33754,2379.9,2379.8,0.00630067]
[1725420766058,11.53914,2379.9,2379.8,0.00630067]
[1725420766262,12.58976,2379.9,2379.8,0.00630067]
[1725420768756,6.58976,2379.9,2379.8,0.00630067]
[1725420770257,6.79539531,2379.9,2379.8,0.00630067]
[1725420771459,4.82747531,2379.9,2379.8,0.00630067]
[1725420771662,4.7201,2380.2,2379.8,0.00630067]
[1725420771966,5.1403,2380.2,2379.8,0.00630067]
[1725420772158,2.91,2380.2,2379.8,0.42656067]
[1725420772360,2.91,2380.2,2379.9,0.8839]
[1725420772561,2.91,2380.2,2379.9,1.8066]
[1725420773064,0.63587056,2380.3,2379.9,1.8066]
[1725420774265,0.00630067,2380.3,2379.9,1.8066]
[1725420774671,0.00630067,2380.3,2379.9,2.22684]
[1725420774972,0.00630067,2380.3,2380.0,0.42023]
[1725420775158,0.00630067,2380.3,2380.1,0.8642]
[1725420779275,0.00630067,2380.3,2379.9,1.8066]
[1725420779574,3.33023,2380.0,2379.9,0.9227]
[1725420780472,0.42024,2379.9,2379.8,0.00630067]
[1725420780662,2.25134,2379.9,2379.8,0.00630067]
[1725420780862,0.42024,2379.9,2379.8,0.00630067]
[1725420783978,3.33024,2380.0,2379.8,0.00630067]
[1725420784577,2.91,2380.0,2379.8,0.00630067]
[1725420784773,3.33023,2380.0,2379.8,0.00630067]
[1725420788071,0.42024,2379.9,2379.8,0.00630067]
[1725420788381,3.2078,2380.1,2379.8,0.00630067]
[1725420788570,3.2078,2380.1,2379.8,0.42655067]
[1725420788772,3.2078,2380.1,2379.9,0.8909]
[1725420789176,3.2078,2380.1,2380.0,0.8993]
[1725420789882,0.42019,2380.2,2380.0,0.8993]
[1725420790184,0.00630067,2380.3,2380.1,0.947]
[1725420790498,0.00630067,2380.3,2380.2,0.42019]
[1725420791179,0.00630067,2380.3,2380.1,1.3672]
[1725420792177,0.00630067,2380.3,2380.2,4.62179]
[1725420792480,2.91,2380.9,2380.2,4.62179]
[1725420792787,0.42006,2381.0,2380.6,0.42011]
[1725420793084,0.42006,2381.0,2380.7,2.3021]
[1725420793282,0.42006,2381.0,2380.7,1.882]
[1725420793583,3.33008,2380.8,2380.7,0.9537]
[1725420793785,6.1178,2380.8,2380.3,0.9283]
[1725420794083,1.12293714,2380.7,2380.3,1.882]
[1725420794384,0.42013,2380.6,2380.3,1.882]
[1725420794582,1.54304714,2380.7,2380.3,1.882]
[1725420795181,0.42012,2380.6,2380.3,1.882]
[1725420795680,0.42012,2380.6,2380.4,0.947]
[1725420795881,0.63054714,2380.7,2380.4,0.947]
[1725420796080,4.3079,2380.8,2380.4,0.947]
[1725420796481,4.3079,2380.8,2380.4,1.36715]
[1725420796784,4.3079,2380.8,2380.4,0.947]
[1725420797287,4.3079,2380.8,2380.4,1.36715]
[1725420797785,0.4201,2380.7,2380.4,0.947]
[1725420798587,0.4201,2380.7,2380.4,1.36715]
[1725420799187,4.30789,2380.8,2380.4,1.36715]
[1725420799484,0.9778,2380.8,2380.5,0.42013]
[1725420799788,0.42009,2380.8,2380.5,0.42013]
[1725420799987,0.4201,2380.7,2380.4,1.36714]
[1725420801080,0.4201,2380.8,2380.4,1.36714]
[1725420801274,0.4201,2380.8,2380.4,0.947]
[1725420801483,1.34937,2380.9,2380.6,0.42011]
[1725420801679,1.34937,2380.9,2380.7,0.8912]
[1725420801882,1.34937,2380.9,2380.7,1.8621]
[1725420803186,0.42011,2380.7,2380.4,0.947]
[1725420803386,0.9287,2380.6,2380.4,0.947]
[1725420803589,0.9287,2380.6,2380.4,1.36714]
[1725420804284,0.4201,2380.8,2380.5,0.42014]
[1725420804486,0.4201,2380.8,2380.6,1.8059]
[1725420806991,0.4201,2380.7,2380.6,1.8059]
[1725420807289,3.8086,2380.8,2380.1,3.3058]
[1725420807493,3.8086,2380.8,2380.3,0.42016]
[1725420807691,0.42012,2380.6,2380.3,0.42016]
[1725420808594,1.31494,2380.5,2380.2,3.30178]
[1725420809488,0.8948,2380.5,2380.2,2.8816]
[1725420809689,0.9498,2380.4,2380.2,2.8816]
[1725420809891,1.36996,2380.4,2380.2,2.8816]
[1725420810488,0.9498,2380.4,2380.2,2.8816]
[1725420811195,0.9498,2380.4,2380.1,3.2078]
[1725420811391,1.35298,2380.3,2380.1,3.2078]
[1725420811796,0.9328,2380.3,2380.1,3.2078]
[1725420813010,1.35298,2380.3,2380.1,3.2078]
[1725420813892,0.42019,2380.2,2380.1,3.2078]
[1725420814089,0.42024,2379.9,2379.8,0.00630067]
[1725420815288,1.32654,2380.0,2379.8,0.00630067]
[1725420816198,0.9063,2380.0,2379.8,0.00630067]
[1725420816398,1.32653,2380.0,2379.8,0.00630067]
[1725420816800,0.42024,2379.9,2379.8,0.00630067]
[1725420817202,1.39294,2379.9,2379.8,0.00630067]
[1725420819308,5.59454,2379.9,2379.8,0.00630067]
[1725420820204,5.1743,2379.9,2379.8,0.00630067]
[1725420820804,5.59454,2379.9,2379.8,0.00630067]
[1725420826003,5.1743,2379.9,2379.8,0.00630067]
[1725420826209,3.8163,2380.0,2379.6,0.42029]
[1725420826210,8.99369933,2379.8,2379.6,0.42029]
[1725420826407,8.99369933,2379.8,2379.7,3.22458]
[1725420826906,8.99369933,2379.8,2379.7,7.42698]
[1725420828905,8.99369933,2379.8,2379.7,7.0067]
[1725420829108,8.99369933,2379.8,2379.7,2.8043]
[1725420829413,8.99369933,2379.8,2379.7,7.0067]
[1725420830603,8.99369933,2379.8,2379.7,2.8043]
[1725420830904,9.41395933,2379.8,2379.7,1.9228]
[1725420831109,9.41395933,2379.8,2379.5,0.00630067]
[1725420831407,0.9748,2379.7,2379.5,0.93900067]
[1725420831900,1.39509,2379.7,2379.5,0.93900067]
[1725420833607,0.9748,2379.7,2379.5,0.93900067]
[1725420833911,8.99369933,2379.8,2379.5,1.35931067]
[1725420834715,8.99369933,2379.8,2379.5,0.93900067]
[1725420835008,9.41396933,2379.8,2379.4,0.42032]
[1725420835310,0.42028,2379.7,2379.4,0.42032]
[1725420835517,9.41396933,2379.8,2379.5,0.42031]
[1725420835998,9.41396933,2379.8,2379.4,0.42662067]
[1725420836515,12.62176933,2379.8,2379.4,0.42662067]
[1725420836713,12.62176933,2379.8,2379.5,0.42031]
[1725420836910,8.99369933,2379.8,2379.7,0.42028]
[1725420837100,8.99369933,2379.8,2379.4,0.00630067]
[1725420837306,8.99369933,2379.8,2379.7,0.42028]
[1725420837802,8.99369933,2379.8,2379.7,4.62268]
[1725420839011,8.99369933,2379.8,2379.7,0.42028]
[1725420839604,8.99369933,2379.8,2379.6,0.42028]
[1725420840316,8.99369933,2379.8,2379.5,3.27111]
[1725420840614,0.42028,2379.7,2379.5,2.8508]
[1725420841410,0.42028,2379.7,2379.5,3.27111]
[1725420841600,8.99369933,2379.8,2379.6,0.4203]
[1725420842101,8.99369933,2379.8,2379.7,0.42028]
[1725420842706,8.99369933,2379.8,2379.6,0.42029]
[1725420843711,9.89639933,2379.8,2379.5,2.8508]
[1725420843905,9.89639933,2379.8,2379.4,0.42662067]
[1725420843906,13.10419933,2379.8,2379.4,0.42662067]
[1725420844111,0.4203,2379.6,2379.4,0.00630067]
[1725420844315,0.9461,2379.5,2379.4,0.00630067]
[1725420844517,1.9079,2379.5,2379.4,0.00630067]
[1725420844718,2.32821,2379.5,2379.4,0.00630067]
[1725420847814,5.53601,2379.5,2379.4,0.00630067]
[1725420848023,0.42039,2379.1,2378.8,4.2147]
[1725420848220,2.91,2379.3,2378.8,0.9089]
[1725420848418,2.7811,2379.4,2378.8,0.9089]
[1725420848721,2.7811,2379.4,2379.0,0.42039]
[1725420849019,3.20143,2379.4,2379.1,1.8316]
[1725420849215,0.42035,2379.3,2379.1,1.8316]
[1725420850415,3.20144,2379.4,2379.1,1.8316]
[1725420850615,2.7811,2379.4,2379.1,1.8316]
[1725420850815,3.20144,2379.4,2379.1,1.8316]
[1725420851116,3.20144,2379.4,2379.2,0.9283]
[1725420851117,2.7811,2379.4,2379.2,0.9283]
[1725420851312,2.7811,2379.4,2379.2,1.34866]
[1725420851313,1.8637,2379.4,2379.2,1.34866]
[1725420851518,3.2078,2379.5,2379.3,4.62354]
[1725420851719,0.9095,2379.7,2379.5,0.42031]
[1725420851917,4.56425,2379.9,2379.2,0.9283]
[1725420852215,5.47375,2379.9,2379.5,0.4203]
[1725420852421,5.47375,2379.9,2379.6,1.36439]
[1725420853125,5.47375,2379.9,2379.6,0.9441]
[1725420853425,5.47375,2379.9,2379.6,1.3644]
[1725420853618,5.47375,2379.9,2379.7,0.8894]
[1725420855917,5.0535,2379.9,2379.8,0.42026]
[1725420856126,5.0535,2379.9,2379.7,1.30967]
[1725420856319,3.2078,2379.9,2379.8,0.42026]
[1725420857120,3.2078,2379.9,2379.7,2.26207]
[1725420857921,3.2078,2379.9,2379.5,0.4203]
[1725420858123,0.42026,2379.8,2379.5,0.4203]
[1725420858321,0.8939,2379.7,2379.5,0.4203]
[1725420858523,0.9049,2379.6,2379.5,0.4203]
[1725420858724,3.62805,2379.9,2379.5,4.62271]
[1725420859029,0.42026,2379.8,2379.5,0.42031]
[1725420859227,0.9635,2379.7,2379.5,0.42031]
[1725420859734,0.9635,2379.7,2379.5,4.62271]
[1725420860331,0.9635,2379.7,2379.5,0.42031]
[1725420860529,0.8882,2379.6,2379.5,0.42031]
[1725420861129,0.8882,2379.6,2379.3,5.20219373]
[1725420861318,0.8882,2379.6,2379.5,0.42031]
[1725420863129,5.0906,2379.6,2379.5,0.42031]
[1725420868738,3.2078,2379.7,2379.5,0.42031]
[1725420868938,7.4102,2379.7,2379.6,0.4203]
[1725420869140,3.2078,2379.7,2379.6,0.4203]
[1725420871932,7.4102,2379.7,2379.3,1.8287]
[1725420872131,4.2024,2379.5,2379.3,0.9032]
[1725420872341,1.30551,2379.6,2379.1,3.54802172]
[1725420872342,8.3713,2379.4,2379.1,3.54802172]
[1725420872543,4.2024,2379.2,2379.1,0.42038]
[1725420876043,5.1426,2379.4,2379.2,0.42036]
[1725420876343,4.2024,2379.3,2379.2,0.42036]
[1725420878044,4.2024,2379.3,2379.1,0.42037]
[1725420878243,5.1806,2379.2,2379.1,0.42037]
[1725420892250,4.2024,2379.2,2379.1,0.42037]
[1725420896055,3.2078,2379.3,2379.0,2.10040067]
[1725420896256,4.1225,2379.8,2379.2,1.05093]
[1725420896558,4.1225,2379.8,2379.6,0.4203]
[1725420896559,4.2024,2379.7,2379.6,0.4203]
[1725420898150,4.2024,2379.7,2379.5,0.42031]
[1725420898348,4.2024,2379.6,2379.5,0.42031]
[1725420901355,4.2024,2379.6,2379.4,0.42033]
[1725420901561,4.2024,2379.4,2379.3,0.42034]
[1725420902062,5.0858,2379.4,2379.3,0.42034]
[1725420902559,5.0858,2379.4,2379.1,3.816627]
[1725420902560,5.0858,2379.4,2379.1,1.635927]
[1725420902762,8.6202,2379.2,2379.1,1.635927]
[1725420903669,9.04057,2379.2,2379.1,1.635927]
[1725420903950,7.4102,2379.2,2379.1,1.635927]
[1725420904150,7.4102,2379.2,2379.0,0.42670067]
[1725420904365,6.0571,2379.1,2379.0,0.42670067]
[1725420906066,6.0571,2379.1,2379.0,0.00630067]
[1725420906264,6.47749,2379.1,2379.0,0.00630067]
[1725420907870,3.2078,2379.5,2379.0,16.32730067]
[1725420908062,5.1078,2379.4,2379.1,2.8199]
[1725420908259,4.2024,2379.3,2379.2,0.42037]
[1725420908459,0.9054,2379.4,2379.2,0.42037]
[1725420908659,4.2024,2379.3,2379.2,0.42037]
[1725420909156,2.91,2379.9,2379.4,0.42033]
[1725420909157,3.62805,2379.9,2379.4,0.42033]
[1725420909461,4.2024,2379.5,2379.4,0.42033]
[1725420912371,4.2024,2379.5,2379.2,0.9693]
[1725420912573,4.2024,2379.3,2379.2,0.42037]
[1725420917265,1.8035,2379.7,2379.6,0.4203]
[1725420917767,6.0059,2379.7,2379.6,0.4203]
[1725420918660,6.0059,2379.7,2379.5,0.4203]
[1725420918864,1.8035,2379.7,2379.5,0.4203]
[1725420919077,4.2024,2379.6,2379.5,0.4203]
[1725420921269,4.2024,2379.6,2379.4,0.42032]
[1725420921472,2.22378,2379.7,2379.4,0.42032]
[1725420921672,4.2024,2379.5,2379.4,0.42032]
[1725420924572,0.00630067,2380.0,2379.9,0.42024]
[1725420924765,4.20870067,2380.0,2379.9,3.33024]
[1725420924963,0.00630067,2380.0,2379.9,4.38086]
[1725420925171,0.00630067,2380.0,2379.9,15.63308]
[1725420925172,6.7e-07,2380.0,2379.9,15.63308]
[1725420925379,0.9728,2380.8,2380.7,0.4201]
[1725420925582,4.2024,2380.9,2380.8,0.42008]
[1725420925771,0.9728,2381.6,2380.9,1.05018]
[1725420926077,0.113,2382.1,2380.9,1.05018]
[1725420926078,0.098,2382.3,2382.2,0.41984]
[1725420926272,4.2024,2382.3,2382.2,2.91]
[1725420926476,4.2024,2382.3,2382.2,3.32984]
[1725420926779,4.2024,2382.3,2382.2,2.91]
[1725420927666,4.2024,2382.3,2382.2,3.32984]
[1725420929667,4.2024,2382.3,2382.2,2.91]
[1725420929868,4.2024,2382.3,2382.2,3.32984]
[1725420930267,0.00630067,2382.5,2382.4,0.4198]
[1725420930474,0.00630067,2382.5,2382.4,6.5376]
[1725420931276,4.20870067,2382.5,2382.4,6.5376]
[1725420931771,4.20870067,2382.5,2382.4,6.1178]
[1725420931974,4.20870067,2382.5,2382.4,6.5376]
[1725420932175,4.20870067,2382.5,2382.4,6.1178]
[1725420932376,4.20870067,2382.5,2382.4,3.2078]
[1725420932567,4.20870067,2382.5,2382.0,0.00630067]
[1725420932568,0.41986,2382.1,2382.0,0.00630067]
[1725420932767,4.62226,2382.1,2382.0,0.00630067]
[1725420933465,4.2024,2382.1,2382.0,0.00630067]
[1725420933664,4.62226,2382.1,2382.0,0.00630067]
[1725420938073,4.41135,2381.6,2381.1,0.63102]
[1725420938279,3.9914,2381.4,2381.0,0.42004]
[1725420938469,3.9914,2381.2,2380.9,3.62786]
[1725420938966,3.9914,2381.2,2381.0,0.42005]
[1725420940379,3.9914,2381.1,2381.0,0.42005]
[1725420940681,0.00630067,2381.3,2381.2,0.42001]
[1725420941076,3.99770067,2381.3,2381.2,0.42001]
[1725420942880,3.99770067,2381.3,2381.0,3.33004]
[1725420943080,3.9914,2381.1,2381.0,3.33005]
[1725420944176,3.9914,2381.1,2381.0,0.42005]
[1725420946487,3.9914,2381.1,2381.0,3.33005]
[1725420946988,3.9914,2381.1,2381.0,0.42005]
[1725420948591,3.9914,2381.1,2381.0,3.33005]
[1725420948888,0.00630067,2381.3,2381.2,0.42001]
[1725420949081,3.99770067,2381.3,2381.2,0.42001]
[1725420950082,3.99770067,2381.3,2381.2,3.62781]
[1725420952188,0.00630067,2381.3,2381.2,3.62781]
[1725420952494,0.00630067,2381.3,2381.2,6.53781]
[1725420954185,3.99770067,2381.3,2381.2,3.62781]
[1725420957696,3.99770067,2381.3,2381.2,4.67785]
[1725420958190,0.00630067,2381.3,2381.2,4.67785]
[1725420959797,0.00630067,2381.3,2381.2,3.62781]
[1725420960597,0.42004,2381.1,2380.8,0.00630067]
[1725420960802,9.99770067,2381.3,2380.8,0.00630067]
[1725420960803,3.9914,2380.9,2380.8,0.00630067]
[1725420961096,0.42011,2380.7,2380.3,0.098]
[1725420961295,0.42011,2380.7,2380.2,5.83848437]
[1725420961296,3.9914,2380.4,2380.2,5.83848437]
[1725420961490,3.9914,2380.3,2380.2,5.41830437]
[1725420961690,3.9914,2380.3,2379.8,4.28208637]
[1725420961909,3.9914,2379.9,2379.8,4.28208637]
[1725420962094,3.9914,2379.9,2379.8,1.07428637]
[1725420962695,10.41164,2379.9,2379.8,1.07428637]
[1725420963110,0.42026,2379.8,2379.7,1.07484121]